bitfinex/quotes_SOLUSD_20251212
["timestamp","ask_amount","ask_price","bid_price","bid_amount"]
[1765509615035,10.17525316,136.92,136.9,0.67]
[1765509615232,2.87171825,136.91,136.89,1e-08]
[1765509615437,2.87171825,136.9,136.89,1e-08]
[1765509615632,25.56237218,136.92,136.9,0.69]
[1765509615837,7.30353491,136.92,136.9,0.69]
[1765509616050,2.87171825,136.91,136.9,0.69]
[1765509616271,2.87171825,136.91,136.89,1e-08]
[1765509616557,10.17632014,136.9,136.89,1e-08]
[1765509618162,7.30460189,136.9,136.89,0.69000001]
[1765509618792,39.30358393,136.94,136.89,0.69000001]
[1765509618962,21.0470912,136.94,136.9,8.80994492]
[1765509619130,15.91880945,136.94,136.91,0.69]
[1765509619466,13.0470912,136.94,136.91,0.69]
[1765509620155,2.87171825,136.92,136.89,1e-08]
[1765509620356,39.29587764,136.94,136.89,0.69000001]
[1765509620537,2.87171825,136.91,136.89,0.69000001]
[1765509621248,0.69,136.92,136.89,1e-08]
[1765509621441,2.87171825,136.9,136.89,1e-08]
[1765509621842,2.87171825,136.9,136.89,0.69000001]
[1765509622651,10.17578661,136.91,136.89,0.69000001]
[1765509623051,10.17529107,136.92,136.89,0.69000001]
[1765509624467,2.87171825,136.91,136.89,0.69000001]
[1765509625966,10.17605301,136.91,136.89,0.69000001]
[1765509627560,7.30353491,136.92,136.89,0.69000001]
[1765509631862,11.78579586,136.93,136.89,0.69000001]
[1765509632068,12.47579586,136.93,136.89,0.69000001]
[1765509632252,11.78579586,136.93,136.89,0.69000001]
[1765509633269,11.78579586,136.93,136.9,8.80994492]
[1765509633468,11.78542191,136.94,136.9,8.80994492]
[1765509633674,11.78542191,136.94,136.91,0.69]
[1765509634253,4.48279433,136.93,136.91,0.69]
[1765509634455,4.48279433,136.92,136.89,0.69000001]
[1765509634756,4.48279433,136.92,136.9,0.69]
[1765509636061,11.78666767,136.92,136.9,0.69]
[1765509636490,7.30387334,136.92,136.9,0.561]
[1765509636685,11.78666767,136.92,136.9,0.561]
[1765509637803,7.30387334,136.92,136.9,0.561]
[1765509638298,11.78579586,136.93,136.9,0.561]
[1765509638860,7.30300153,136.93,136.9,0.561]
[1765509639074,11.78579586,136.93,136.9,0.561]
[1765509639569,7.3026571,136.94,136.9,0.561]
[1765509639894,12.47545143,136.94,136.9,0.561]
[1765509640068,4.48279433,136.93,136.9,0.561]
[1765509640385,7.3026571,136.94,136.9,0.561]
[1765509640690,4.48279433,136.93,136.9,0.561]
[1765509640886,11.78545143,136.94,136.9,0.561]
[1765509643562,4.48279433,136.93,136.91,8.80994492]
[1765509644082,4.48279433,136.93,136.91,0.7]
[1765509644279,13.0470912,136.9,136.89,1e-08]
[1765509644483,17.52988553,136.9,136.89,1e-08]
[1765509644675,18.18988553,136.9,136.87,0.1]
[1765509644996,4.48279433,136.88,136.87,0.1]
[1765509645497,5.14279433,136.88,136.87,0.1]
[1765509646201,12.44846352,136.88,136.87,0.1]
[1765509656000,15.37404406,136.88,136.87,0.1]
[1765509656342,13.0470912,136.86,136.85,0.1]
[1765509656607,25.52988553,136.86,136.85,0.1]
[1765509656790,26.18988553,136.86,136.85,0.1]
[1765509657493,21.7070912,136.86,136.85,0.1]
[1765509657698,26.18988553,136.86,136.85,0.1]
[1765509658082,25.49662234,136.86,136.85,0.1]
[1765509658283,32.83662234,136.86,136.85,0.1]
[1765509659095,32.83662234,136.86,136.85,0.8]
[1765509659296,32.83662234,136.86,136.85,0.1]
[1765509660000,33.49662234,136.86,136.85,0.1]
[1765509660976,32.83662234,136.86,136.85,0.1]
[1765509665586,32.83662234,136.86,136.85,0.8]
[1765509665788,24.83662234,136.86,136.85,0.8]
[1765509666411,20.35382801,136.86,136.85,0.8]
[1765509666907,25.49662234,136.86,136.85,0.1]
[1765509668513,33.49662234,136.86,136.85,0.1]
[1765509669210,33.49662234,136.86,136.85,1e-08]
[1765509669211,42.30656726,136.86,136.85,1e-08]
[1765509669387,37.82377293,136.86,136.85,1e-08]
[1765509669585,29.01382801,136.86,136.85,1e-08]
[1765509669790,33.49662234,136.86,136.85,1e-08]
[1765509670996,32.83662234,136.86,136.85,1e-08]
[1765509671709,28.35382801,136.86,136.85,1e-08]
[1765509671907,32.83662234,136.86,136.85,1e-08]
[1765509672102,33.49662234,136.86,136.85,1e-08]
[1765509675538,28.35382801,136.86,136.85,1e-08]
[1765509675704,32.83662234,136.86,136.85,0.70000001]
[1765509675909,24.83662234,136.86,136.85,0.70000001]
[1765509676113,24.83662234,136.86,136.85,1e-08]
[1765509676828,25.51662234,136.86,136.85,1e-08]
[1765509677133,33.51662234,136.86,136.85,1e-08]
[1765509678436,42.32656726,136.86,136.85,1e-08]
[1765509679237,33.51662234,136.86,136.85,1e-08]
[1765509679937,42.32656726,136.86,136.85,1e-08]
[1765509680717,33.51662234,136.86,136.85,1e-08]
[1765509680917,42.32656726,136.86,136.85,1e-08]
[1765509683329,46.80936159,136.86,136.85,1e-08]
[1765509684520,42.32656726,136.86,136.85,1e-08]
[1765509686041,47.09368473,136.86,136.85,1e-08]
[1765509689119,0.28432314,136.85,136.76,16.80994492]
[1765509689442,0.28432314,136.85,136.77,0.7]
[1765509689443,4.48279433,136.79,136.77,0.7]
[1765509689740,11.79350121,136.79,136.77,0.7]
[1765509690430,4.48279433,136.78,136.77,0.7]
[1765509691045,4.48279433,136.78,136.75,0.8]
[1765509691217,15.31070688,136.79,136.75,0.8]
[1765509691529,11.79281833,136.8,136.76,8.80994492]
[1765509691724,11.79281833,136.8,136.76,16.12198957]
[1765509691924,10.18427744,136.8,136.77,0.7]
[1765509694840,10.1848015,136.79,136.77,0.7]
[1765509695223,2.87425344,136.78,136.77,0.7]
[1765509695822,2.87425344,136.78,136.76,0.7]
[1765509696028,2.87425344,136.77,136.75,0.1]
[1765509696229,2.87425344,136.76,136.75,0.8]
[1765509697042,10.18633299,136.76,136.75,0.8]
[1765509697235,7.31207955,136.76,136.75,0.8]
[1765509697443,10.18633299,136.76,136.75,0.8]
[1765509698350,10.18596677,136.77,136.75,0.8]
[1765509698826,2.87425344,136.76,136.75,0.8]
[1765509699356,10.18633299,136.76,136.75,0.8]
[1765509701240,10.18633299,136.76,136.75,0.1]
[1765509702634,10.86633299,136.76,136.75,0.1]
[1765509706465,13.79448349,136.76,136.75,0.1]
[1765509708046,116.99448349,136.76,136.75,0.1]
[1765509709547,14.07880663,136.76,136.75,1e-08]
[1765509710671,13.79448349,136.76,136.75,1e-08]
[1765509711470,26.16157469,136.76,136.75,1e-08]
[1765509711648,23.23342419,136.76,136.75,0.69000001]
[1765509711849,10.18633299,136.76,136.75,0.69000001]
[1765509712149,18.18596569,136.77,136.75,0.69000001]
[1765509712547,15.31171225,136.77,136.75,0.69000001]
[1765509712959,10.18540879,136.78,136.75,0.69000001]
[1765509713450,15.92134464,136.77,136.75,0.69000001]
[1765509713650,2.87425344,136.76,136.75,0.69000001]
[1765509715662,23.2332904,136.77,136.75,0.69000001]
[1765509718864,10.18633299,136.76,136.75,0.69000001]
[1765509722780,23.23307125,136.77,136.75,9.49994493]
[1765509722982,23.23307125,136.77,136.76,0.69]
[1765509723357,20.35881781,136.77,136.76,0.69]
[1765509723562,23.23307125,136.77,136.76,0.69]
[1765509725584,23.23307125,136.77,136.75,1e-08]
[1765509725774,2.87425344,136.76,136.75,0.69000001]
[1765509725982,3.55425344,136.76,136.75,1e-08]
[1765509726699,2.87425344,136.76,136.75,0.69000001]
[1765509726996,10.18633299,136.76,136.75,1e-08]
[1765509727306,10.86633299,136.76,136.75,1e-08]
[1765509728386,10.18633299,136.76,136.75,1e-08]
[1765509730194,10.86633299,136.76,136.75,1e-08]
[1765509733417,13.0470912,136.74,136.73,0.1]
[1765509733620,23.92134464,136.74,136.73,0.1]
[1765509734384,31.23449368,136.74,136.73,0.1]
[1765509738014,28.36024024,136.74,136.73,0.1]
[1765509738213,31.23449368,136.74,136.73,0.1]
[1765509738511,29.04024024,136.74,136.73,0.1]
[1765509738713,31.23449368,136.74,136.73,0.1]
[1765509742493,31.91449368,136.74,136.73,0.1]
[1765509743320,31.23449368,136.74,136.73,0.1]
[1765509744927,28.36024024,136.74,136.73,0.1]
[1765509745109,31.23449368,136.74,136.73,0.1]
[1765509745616,28.36024024,136.74,136.73,0.1]
[1765509745814,31.23449368,136.74,136.73,0.1]
[1765509748126,31.91449368,136.74,136.73,0.1]
[1765509748307,31.23449368,136.74,136.73,0.1]
[1765509748705,31.91449368,136.74,136.73,0.1]
[1765509752129,50.19736628,136.74,136.71,0.1]
[1765509752336,10.18847228,136.72,136.71,0.1]
[1765509752507,18.18847228,136.72,136.71,0.1]
[1765509752712,18.86847228,136.72,136.71,1e-08]
[1765509753835,21.74272572,136.72,136.71,1e-08]
[1765509754018,25.2771635,136.72,136.71,1e-08]
[1765509755118,13.0470912,136.69,136.63,0.1]
[1765509755326,8.02,136.68,136.66,0.68]
[1765509756134,8.7,136.68,136.65,0.68]
[1765509756444,8.7,136.68,136.63,0.78]
[1765509756445,30.11031616,136.66,136.63,0.78]
[1765509756621,4.49931076,136.64,136.63,0.78]
[1765509757816,11.81781193,136.64,136.63,0.78]
[1765509759031,13.0470912,136.66,136.63,0.78]
[1765509759234,11.81629726,136.67,136.64,8.80994492]
[1765509759836,11.81629726,136.67,136.65,0.68]
[1765509760435,4.49931076,136.67,136.65,0.68]
[1765509760625,115.01586245,136.68,136.65,0.68]
[1765509760828,11.8153204,136.69,136.66,8.80994492]
[1765509761232,11.8153204,136.69,136.67,0.68]
[1765509761910,7.31600964,136.69,136.67,0.68]
[1765509762909,7.31543771,136.7,136.67,0.68]
[1765509763335,7.31489065,136.71,136.68,8.80994492]
[1765509763636,7.31489065,136.71,136.69,0.66]
[1765509769925,11.81420141,136.71,136.69,0.66]
[1765509770731,7.31437649,136.72,136.69,0.66]
[1765509772249,15.33378497,136.73,136.7,8.80994492]
[1765509772544,7.31378497,136.73,136.7,8.80994492]
[1765509772842,7.31378497,136.73,136.71,0.66]
[1765509773432,20.36040349,136.74,136.71,0.66]
[1765509773842,15.33275894,136.75,136.72,8.80994492]
[1765509774043,7.31275894,136.75,136.73,0.66]
[1765509774345,11.8120697,136.75,136.73,0.66]
[1765509775233,7.31275894,136.75,136.73,0.66]
[1765509775435,11.8120697,136.75,136.73,0.66]
[1765509776547,7.31275894,136.75,136.73,0.66]
[1765509776750,11.8120697,136.75,136.73,0.66]
[1765509777351,7.31275894,136.75,136.73,0.66]
[1765509777531,11.8120697,136.75,136.73,0.66]
[1765509778654,7.31275894,136.75,136.73,0.66]
[1765509779233,110.51217072,136.76,136.73,0.66]
[1765509779552,115.01148148,136.76,136.73,0.66]
[1765509779755,7.31217072,136.76,136.73,0.66]
[1765509780164,19.83087116,136.77,136.74,8.80994492]
[1765509780329,15.3315604,136.77,136.74,8.80994492]
[1765509780537,7.3115604,136.77,136.75,0.66]
[1765509780730,4.49931076,136.76,136.74,0.66]
[1765509780932,4.49931076,136.75,136.74,0.66]
[1765509781960,4.49931076,136.75,136.71,8.80994492]
[1765509782166,4.49931076,136.75,136.71,0.66]
[1765509782167,4.49931076,136.73,136.71,0.66]
[1765509783037,4.49931076,136.74,136.71,0.66]
[1765509783238,11.81275324,136.74,136.71,0.66]
[1765509784639,7.31344248,136.74,136.71,0.66]
[1765509784841,11.81275324,136.74,136.71,0.66]
[1765509787057,7.31344248,136.74,136.71,9.46994492]
[1765509787561,7.31344248,136.74,136.72,0.66]
[1765509787734,11.81209708,136.75,136.72,0.66]
[1765509789270,11.81139031,136.76,136.72,7.97416058]
[1765509789568,11.81139031,136.76,136.73,0.66]
[1765509790355,123.01087752,136.77,136.73,0.66]
[1765509790863,123.73087752,136.77,136.73,0.66]
[1765509791072,4.49931076,136.75,136.73,0.66]
[1765509791289,11.81248055,136.74,136.67,20.62400581]
[1765509791448,4.49931076,136.72,136.7,0.66]
[1765509791776,30.09535315,136.74,136.7,0.66]
[1765509792156,11.81248055,136.74,136.7,0.66]
[1765509793275,4.49931076,136.73,136.7,0.66]
[1765509793650,11.81319307,136.73,136.7,0.66]
[1765509795866,4.49931076,136.72,136.7,0.66]
[1765509797363,11.81319307,136.73,136.7,0.66]
[1765509797555,7.31388231,136.73,136.7,0.66]
[1765509800858,4.49931076,136.73,136.7,0.66]
[1765509802066,11.81310984,136.73,136.7,0.66]
[1765509803254,12.51310984,136.73,136.7,0.66]
[1765509803959,11.81310984,136.73,136.7,0.66]
[1765509804290,7.31379908,136.73,136.7,0.66]
[1765509804458,4.49931076,136.73,136.7,0.66]
[1765509806062,11.81327129,136.73,136.7,0.66]
[1765509806985,7.31314904,136.74,136.7,0.66]
[1765509807186,5.19931076,136.73,136.7,0.66]
[1765509807375,4.49931076,136.72,136.7,0.66]
[1765509808692,11.81375852,136.72,136.7,0.66]
[1765509808866,12.51375852,136.72,136.69,8.80994492]
[1765509809065,12.51375852,136.72,136.69,9.45994492]
[1765509809469,12.51375852,136.72,136.69,8.80994492]
[1765509809773,12.51375852,136.72,136.7,0.65]
[1765509810087,11.81375852,136.72,136.7,0.65]
[1765509810661,7.31386098,136.73,136.7,0.65]
[1765509813286,12.51261891,136.74,136.7,0.65]
[1765509813893,106.07587169,136.77,136.71,11.68581661]
[1765509814083,106.77587169,136.77,136.71,11.68581661]
[1765509814269,106.77587169,136.77,136.73,8.80994492]
[1765509814795,7.31217665,136.76,136.74,0.65]
[1765509814964,7.31217665,136.76,136.73,8.80994492]
[1765509815170,8.01217665,136.76,136.73,9.45994492]
[1765509816994,8.01217665,136.76,136.73,8.80994492]
[1765509817181,7.31217665,136.76,136.74,0.65]
[1765509817575,8.01217665,136.76,136.74,0.65]
[1765509817987,8.01217665,136.76,136.73,9.45994492]
[1765509818705,8.01217665,136.76,136.74,0.65]
[1765509819205,7.31217665,136.76,136.74,0.65]
[1765509819708,8.01217665,136.76,136.74,0.65]
[1765509820070,8.01217665,136.76,136.73,8.80994492]
[1765509820274,8.01217665,136.76,136.73,9.45994492]
[1765509820978,8.01217665,136.76,136.73,8.80994492]
[1765509821181,7.31217665,136.76,136.74,0.65]
[1765509822702,110.51173055,136.77,136.74,0.65]
[1765509823012,103.2,136.77,136.74,0.65]
[1765509823186,0.66,136.76,136.73,16.80994492]
[1765509823381,3.53587169,136.76,136.73,17.51994492]
[1765509824177,113.38746448,136.77,136.74,0.71]
[1765509824379,114.04746448,136.77,136.74,0.71]
[1765509824596,113.38746448,136.77,136.74,0.71]
[1765509824777,0.66,136.76,136.74,0.71]
[1765509824991,0.66,136.76,136.73,16.80994492]
[1765509825192,0.66,136.76,136.73,17.51994492]
[1765509827329,0.66,136.76,136.74,0.71]
[1765509828919,0.66,136.76,136.73,17.51994492]
[1765509829634,0.66,136.76,136.73,16.80994492]
[1765509829822,0.66,136.76,136.73,17.51994492]
[1765509833736,0.66,136.76,136.74,0.71]
[1765509834436,0.66,136.76,136.73,16.80994492]
[1765509834638,0.66,136.76,136.73,17.51994492]
[1765509835534,0.66,136.76,136.73,16.80994492]
[1765509835829,0.66,136.76,136.73,17.51994492]
[1765509836039,0.66,136.76,136.73,16.80994492]
[1765509836223,0.66,136.76,136.74,0.71]
[1765509837146,10.84746448,136.77,136.74,0.71]
[1765509837441,0.66,136.76,136.74,0.71]
[1765509839036,2.87587169,136.75,136.72,0.71]
[1765509839540,0.66,136.74,136.72,0.71]
[1765509839744,2.87587169,136.75,136.72,0.71]
[1765509839940,29.12841688,136.76,136.72,0.71]
[1765509840318,10.848218,136.76,136.73,8.80994492]
[1765509840524,7.97234631,136.76,136.73,8.80994492]
[1765509840754,7.97234631,136.76,136.74,0.71]
[1765509841131,3.53587169,136.75,136.72,8.80994492]
[1765509841441,3.53587169,136.75,136.72,9.51994492]
[1765509841442,0.66,136.75,136.72,9.51994492]
[1765509841642,10.848218,136.76,136.73,0.71]
[1765509841843,7.97234631,136.76,136.73,0.71]
[1765509844557,0.66,136.75,136.72,16.83413647]
[1765509844756,0.66,136.75,136.73,0.71]
[1765509845226,7.97234631,136.76,136.73,0.71]
[1765509845837,10.848218,136.76,136.73,0.71]
[1765509847546,7.31171947,136.77,136.74,8.80994492]
[1765509847750,21.01828134,136.78,136.74,8.80994492]
[1765509848053,21.01828134,136.78,136.75,0.71]
[1765509848431,23.89415303,136.78,136.75,0.71]
[1765509848963,0.66,136.77,136.75,0.71]
[1765509852130,23.23415303,136.78,136.75,0.71]
[1765509852652,23.89415303,136.78,136.75,0.71]
[1765509852845,23.23415303,136.78,136.75,0.71]
[1765509853051,23.90415303,136.78,136.75,0.71]
[1765509854627,20.35828134,136.78,136.75,0.71]
[1765509855244,15.31059718,136.79,136.76,8.80994492]
[1765509855445,7.31059718,136.79,136.77,0.69]
[1765509856241,10.1860187,136.8,136.77,0.69]
[1765509856541,7.30947987,136.81,136.78,8.80994492]
[1765509856934,7.30947987,136.81,136.79,0.69]
[1765509858651,122.13872541,136.85,136.8,8.80994492]
[1765509858952,10.85367642,136.84,136.8,8.80994492]
[1765509859156,7.97739173,136.85,136.82,8.80994492]
[1765509859457,3.54587169,136.84,136.81,8.0]
[1765509859634,0.67,136.83,136.81,8.0]
[1765509859836,3.54587169,136.83,136.81,8.0]
[1765509860030,2.87587169,136.83,136.81,0.69]
[1765509860227,0.67,136.84,136.81,0.69]
[1765509860448,10.18427961,136.83,136.8,8.80994492]
[1765509860643,7.30840792,136.83,136.81,0.67]
[1765509860949,10.18370757,136.84,136.81,0.67]
[1765509861156,10.89370757,136.84,136.81,0.67]
[1765509861749,10.18370757,136.84,136.81,0.67]
[1765509861950,3.58587169,136.83,136.8,8.80994492]
[1765509862154,2.87587169,136.82,136.8,8.80994492]
[1765509862351,2.87587169,136.81,136.79,8.67]
[1765509863142,2.87587169,136.81,136.79,8.0]
[1765509863348,2.87587169,136.81,136.8,0.67]
[1765509863636,10.18525273,136.82,136.8,0.67]
[1765509864449,7.30938104,136.82,136.8,0.67]
[1765509865165,7.30835584,136.83,136.8,9.47994492]
[1765509865364,7.30794089,136.84,136.81,8.80994492]
[1765509865542,8.01794089,136.84,136.79,0.67]
[1765509865853,2.87587169,136.82,136.79,0.67]
[1765509866270,3.58587169,136.82,136.79,0.67]
[1765509866631,10.89513369,136.82,136.79,0.67]
[1765509867262,10.18513369,136.82,136.79,0.67]
[1765509871258,10.89513369,136.82,136.79,0.67]
[1765509872547,10.18513369,136.82,136.79,0.67]
[1765509873666,7.309262,136.82,136.79,0.67]
[1765509874357,16.63296289,136.85,136.8,11.68581661]
[1765509874559,20.35453079,136.85,136.81,2.87587169]
[1765509874754,20.35453079,136.85,136.82,0.67]
[1765509875371,13.0470912,136.85,136.83,8.80994492]
[1765509875575,11.78587169,136.89,136.85,8.80994492]
[1765509875872,5.19601192,136.88,136.84,9.47994492]
[1765509876243,0.71,136.88,136.85,0.67]
[1765509876443,12.50180714,136.88,136.85,0.67]
[1765509876971,12.50180714,136.88,136.83,24.11824488]
[1765509876972,0.71,136.87,136.83,24.11824488]
[1765509877164,5.19601192,136.87,136.84,0.67]
[1765509877359,4.48601192,136.87,136.84,0.67]
[1765509877561,0.2,136.89,136.86,4.48601192]
[1765509877765,12.70125369,136.89,136.85,8.80994492]
[1765509878069,12.70125369,136.89,136.86,0.67]
[1765509878273,4.48601192,136.87,136.85,8.80994492]
[1765509878480,4.48601192,136.86,136.84,8.80994492]
[1765509878770,4.48601192,136.85,136.83,8.67]
[1765509878984,4.48601192,136.85,136.82,8.80994492]
[1765509879144,5.19601192,136.85,136.82,9.47994492]
[1765509879348,0.71,136.85,136.82,9.47994492]
[1765509879584,7.30741534,136.85,136.82,8.80994492]
[1765509879779,4.48601192,136.84,136.82,8.80994492]
[1765509879946,4.48601192,136.84,136.83,0.67]
[1765509880347,4.48601192,136.84,136.82,8.80994492]
[1765509880576,4.48601192,136.84,136.82,9.47994492]
[1765509880755,4.48601192,136.84,136.83,0.67]
[1765509882191,7.30741534,136.85,136.83,0.67]
[1765509882352,11.79342726,136.85,136.83,0.67]
[1765509883389,11.79342726,136.85,136.82,8.80994492]
[1765509883390,12.46342726,136.85,136.82,9.51994492]
[1765509883674,12.46342726,136.85,136.82,8.80994492]
[1765509883888,4.48601192,136.84,136.82,9.51994492]
[1765509884186,12.46342726,136.85,136.82,9.51994492]
[1765509884549,25.57258781,136.87,136.83,0.71]
[1765509884750,4.48601192,136.85,136.83,0.71]
[1765509885777,11.79338858,136.85,136.83,0.71]
[1765509886081,7.97698768,136.86,136.83,0.71]
[1765509886253,7.30698768,136.86,136.83,0.71]
[1765509886454,4.48601192,136.87,136.84,8.80994492]
[1765509886671,11.79191804,136.88,136.84,8.80994492]
[1765509886877,11.79191804,136.88,136.85,0.71]
[1765509887061,12.46191804,136.88,136.85,0.71]
[1765509887976,5.15601192,136.87,136.84,8.80994492]
[1765509888572,4.48601192,136.85,136.82,8.80994492]
[1765509888769,4.48601192,136.83,136.82,8.80994492]
[1765509888953,4.48601192,136.83,136.79,0.71]
[1765509889150,4.48601192,136.81,136.79,0.71]
[1765509889954,7.97909814,136.82,136.79,0.71]
[1765509890151,4.48601192,136.81,136.79,0.71]
[1765509890769,4.48601192,136.81,136.78,8.80994492]
[1765509890967,5.15601192,136.81,136.78,9.51994492]
[1765509892257,4.48601192,136.81,136.78,16.12061626]
[1765509892453,18.26964949,136.84,136.79,0.71]
[1765509892454,4.48601192,136.82,136.79,0.71]
[1765509892884,12.46435073,136.83,136.8,8.80994492]
[1765509893295,12.46435073,136.83,136.8,9.51994492]
[1765509895078,25.51144193,136.83,136.8,9.51994492]
[1765509895291,5.15601192,136.82,136.8,8.80994492]
[1765509895584,4.48601192,136.82,136.8,0.71]
[1765509897167,4.48601192,136.82,136.78,16.12079074]
[1765509897373,5.15601192,136.81,136.79,8.80994492]
[1765509897591,4.48601192,136.81,136.79,0.71]
[1765509898195,11.79498169,136.82,136.79,0.71]
[1765509899793,12.46498169,136.82,136.79,0.71]
[1765509900193,11.79498169,136.82,136.79,0.71]
[1765509901000,7.30896977,136.82,136.79,0.71]
[1765509901295,11.79498169,136.82,136.79,0.71]
[1765509902900,20.35553891,136.83,136.79,8.02044876]
[1765509903196,7.30789573,136.84,136.8,4.48601192]
[1765509903403,7.30789573,136.84,136.81,8.80994492]
[1765509903594,7.30789573,136.84,136.81,9.51994492]
[1765509903787,7.30789573,136.84,136.82,0.71]
[1765509904697,7.30739216,136.85,136.82,0.71]
[1765509904875,11.7929287,136.86,136.82,0.71]
[1765509905081,7.30691678,136.86,136.83,8.80994492]
[1765509905299,7.30691678,136.86,136.84,0.71]
[1765509905477,12.46236826,136.87,136.84,0.71]
[1765509907000,7.30635634,136.87,136.84,0.71]
[1765509907201,12.46171485,136.88,136.85,8.80994492]
[1765509907383,11.79171485,136.88,136.85,8.80994492]
[1765509907590,11.79171485,136.88,136.86,0.71]
[1765509907895,4.48601192,136.88,136.85,8.80994492]
[1765509908097,7.50518828,136.89,136.8,0.71]
[1765509908098,17.53310312,136.86,136.8,0.71]
[1765509908291,4.48601192,136.84,136.81,8.80994492]
[1765509908486,11.79406489,136.84,136.81,8.80994492]
[1765509908699,12.46406489,136.84,136.81,8.80994492]
[1765509908891,11.79343826,136.85,136.82,0.71]
[1765509909292,12.46343826,136.85,136.82,0.71]
[1765509909601,7.97742634,136.85,136.82,0.71]
[1765509909780,12.46343826,136.85,136.82,0.71]
[1765509913404,4.48601192,136.84,136.82,0.71]
[1765509913612,11.79343826,136.85,136.82,0.71]
[1765509914194,12.49343826,136.85,136.82,0.71]
[1765509915905,11.79343826,136.85,136.82,0.71]
[1765509916106,0.7,136.84,136.82,0.71]
[1765509916317,5.18601192,136.84,136.8,16.78973266]
[1765509916514,12.49384991,136.84,136.81,0.67]
[1765509917914,12.49341585,136.85,136.82,8.80994492]
[1765509918516,12.49341585,136.85,136.82,9.47994492]
[1765509919016,7.30691448,136.86,136.83,0.67]
[1765509919186,0.2,136.89,136.84,13.29595684]
[1765509919393,0.2,136.89,136.86,13.29595684]
[1765509919716,0.2,136.89,136.86,21.29595684]
[1765509919916,0.2,136.89,136.88,8.80994492]
[1765509920292,0.2,136.89,136.88,9.47994492]
[1765509925629,0.2,136.89,136.88,8.80994492]
[1765509925803,12.69114743,136.89,136.86,8.0]
[1765509926000,4.48601192,136.88,136.87,8.80994492]
[1765509926323,4.48601192,136.88,136.84,0.67]
[1765509926324,0.7,136.88,136.84,0.67]
[1765509926648,0.7,136.87,136.84,0.67]
[1765509926923,5.18601192,136.87,136.84,0.67]
[1765509927216,0.2,136.89,136.87,8.80994492]
[1765509928706,0.2,136.89,136.87,9.47994492]
[1765509929091,0.2,136.89,136.87,8.80994492]
[1765509930105,0.2,136.89,136.87,9.47994492]
[1765509930602,0.2,136.89,136.88,9.47994492]
[1765509931015,0.2,136.89,136.88,8.80994492]
[1765509933100,0.2,136.89,136.88,9.47994492]
[1765509933319,0.2,136.89,136.88,8.80994492]
[1765509938603,8.20513551,136.89,136.86,8.0]
[1765509938920,8.20513551,136.89,136.87,8.80994492]
[1765509939105,7.50513551,136.89,136.87,9.47994492]
[1765509940319,0.7,136.88,136.87,8.80994492]
[1765509940520,0.7,136.88,136.83,0.67]
[1765509940521,3.5698278,136.88,136.83,0.67]
[1765509940726,2.8698278,136.87,136.83,0.67]
[1765509940919,3.5698278,136.87,136.83,0.67]
[1765509941425,0.7,136.87,136.83,7.97830724]
[1765509941611,0.7,136.87,136.84,9.47994492]
[1765509942233,8.00627476,136.87,136.84,9.47994492]
[1765509943102,10.87610256,136.87,136.84,9.47994492]
[1765509944225,3.5698278,136.87,136.84,9.47994492]
[1765509946235,10.87619481,136.87,136.84,9.47994492]
[1765509947019,2.8698278,136.87,136.86,8.80994492]
[1765509947426,3.5698278,136.87,136.86,8.80994492]
[1765509947928,3.5698278,136.87,136.81,31.32012992]
[1765509947929,18.87603076,136.87,136.81,8.80994492]
[1765509948233,10.17789024,136.84,136.81,8.80994492]
[1765509948428,10.17789024,136.84,136.81,9.50994492]
[1765509948634,10.87789024,136.84,136.81,9.50994492]
[1765509950737,8.00806244,136.84,136.81,9.50994492]
[1765509950941,8.0,136.87,136.82,0.7]
[1765509951118,13.0470912,136.88,136.83,19.67977272]
[1765509951119,7.30578756,136.88,136.83,19.67977272]
[1765509951434,0.7,136.87,136.81,24.81926398]
[1765509951629,2.8698278,136.86,136.83,8.80994492]
[1765509952028,0.7,136.85,136.83,8.80994492]